[Event "Titled Tuesday Blitz November 08 Early 2022"]
[White "Aqib Javaid Butt"]
[Black "Fernandez Hernandez, Gerardo"]
[WhiteFideId "7801262"]
[BlackFideId "2207400"]
[WhiteElo "1659"]
[BlackElo "2221"]
[Result "0-1"]
[Round "08"]
[TimeControl "180+1"]
[Date "2022.11.09"]
[WhiteClock "0:01:13"]
[BlackClock "0:00:30"]

1. d4 {[%clk 0:02:55]}  Nf6 {[%clk 0:02:59]} 2. e3 {[%clk 0:02:55]}  g6 {[%clk 0:02:59]} 3. Nf3 {[%clk 0:02:56]}  Bg7 {[%clk 0:02:59]} 4. b4 {[%clk 0:02:54]}  O-O {[%clk 0:02:56]} 5. Bb2 {[%clk 0:02:54]}  d5 {[%clk 0:02:51]} 6. c4 {[%clk 0:02:52]}  dxc4 {[%clk 0:02:49]} 7. Bxc4 {[%clk 0:02:51]}  Nbd7 {[%clk 0:02:46]} 8. O-O {[%clk 0:02:50]}  Nb6 {[%clk 0:02:45]} 9. Be2 {[%clk 0:02:48]}  Nbd5 {[%clk 0:02:44]} 10. Qb3 {[%clk 0:02:44]}  c6 {[%clk 0:02:26]} 11. Nbd2 {[%clk 0:02:45]}  Bf5 {[%clk 0:02:25]} 12. Rfc1 {[%clk 0:02:41]}  Ne4 {[%clk 0:02:13]} 13. Nxe4 {[%clk 0:02:37]}  Bxe4 {[%clk 0:02:13]} 14. Nd2 {[%clk 0:02:38]}  Nf6 {[%clk 0:01:54]} 15. Nxe4 {[%clk 0:02:29]}  Nxe4 {[%clk 0:01:55]} 16. Bf3 {[%clk 0:02:23]}  Nd2 {[%clk 0:01:51]} 17. Qd1 {[%clk 0:02:21]}  Nxf3+ {[%clk 0:01:49]} 18. Qxf3 {[%clk 0:02:22]}  Rc8 {[%clk 0:01:39]} 19. Qe4 {[%clk 0:02:10]}  e6 {[%clk 0:01:35]} 20. a4 {[%clk 0:02:07]}  Qd5 {[%clk 0:01:33]} 21. Qxd5 {[%clk 0:02:04]}  cxd5 {[%clk 0:01:34]} 22. Kf1 {[%clk 0:01:54]}  a6 {[%clk 0:01:22]} 23. Ke2 {[%clk 0:01:47]}  Rfd8 {[%clk 0:01:13]} 24. Rc5 {[%clk 0:01:42]}  Bf8 {[%clk 0:01:08]} 25. Rxc8 {[%clk 0:01:41]}  Rxc8 {[%clk 0:01:09]} 26. Ba3 {[%clk 0:01:29]}  Rc2+ {[%clk 0:00:59]} 27. Kf3 {[%clk 0:01:29]}  Rc4 {[%clk 0:00:57]} 28. b5 {[%clk 0:01:29]}  Rxa4 {[%clk 0:00:55]} 29. bxa6 {[%clk 0:01:29]}  bxa6 {[%clk 0:00:45]} 30. Bb2 {[%clk 0:01:28]}  Rxa1 {[%clk 0:00:42]} 31. Bxa1 {[%clk 0:01:28]}  Bb4 {[%clk 0:00:38]} 32. e4 {[%clk 0:01:28]}  Kf8 {[%clk 0:00:37]} 33. Kf4 {[%clk 0:01:24]}  f6 {[%clk 0:00:36]} 34. exd5 {[%clk 0:01:24]}  exd5 {[%clk 0:00:36]} 35. g4 {[%clk 0:01:24]}  Ke7 {[%clk 0:00:35]} 36. h4 {[%clk 0:01:23]}  Ke6 {[%clk 0:00:34]} 37. Ke3 {[%clk 0:01:20]}  f5 {[%clk 0:00:32]} 38. gxf5+ {[%clk 0:01:17]}  Kxf5 {[%clk 0:00:33]} 39. Kf3 {[%clk 0:01:14]}  a5 {[%clk 0:00:32]} 40. Bb2 {[%clk 0:01:13]}  a4 {[%clk 0:00:32]} 41. Ba1 {[%clk 0:01:13]}  a3 {[%clk 0:00:30]} 42. Kg3 {[%clk 0:01:13]}  Bd2 {[%clk 0:00:30]} 0-1


[Site "https://www.chess.com"]

[Event "Titled Tuesday Blitz November 08 Early 2022"]
[White "Averjanov, Alexey"]
[Black "Kowalczyk, Pawel"]
[WhiteFideId "14109867"]
[BlackFideId "1130641"]
[WhiteElo "2589"]
[BlackElo "2324"]
[Result "0-1"]
[Round "08"]
[TimeControl "180+1"]
[Date "2022.11.09"]
[WhiteClock "0:00:02"]
[BlackClock "0:00:18"]

1. d4 {[%clk 0:02:58]}  Nf6 {[%clk 0:03:00]} 2. c4 {[%clk 0:02:58]}  c5 {[%clk 0:03:00]} 3. d5 {[%clk 0:02:58]}  b5 {[%clk 0:03:00]} 4. Nf3 {[%clk 0:02:58]}  bxc4 {[%clk 0:03:00]} 5. Nc3 {[%clk 0:02:58]}  g6 {[%clk 0:03:00]} 6. e4 {[%clk 0:02:58]}  d6 {[%clk 0:03:01]} 7. Bxc4 {[%clk 0:02:58]}  Bg7 {[%clk 0:03:02]} 8. e5 {[%clk 0:02:59]}  dxe5 {[%clk 0:03:00]} 9. Nxe5 {[%clk 0:03:00]}  O-O {[%clk 0:03:00]} 10. O-O {[%clk 0:03:00]}  Ne8 {[%clk 0:02:58]} 11. Nxf7 {[%clk 0:02:53]}  Rxf7 {[%clk 0:02:57]} 12. d6 {[%clk 0:02:54]}  e6 {[%clk 0:02:51]} 13. Ne4 {[%clk 0:02:12]}  Nc6 {[%clk 0:02:51]} 14. Nxc5 {[%clk 0:02:09]}  Nd4 {[%clk 0:02:52]} 15. Re1 {[%clk 0:02:04]}  Nxd6 {[%clk 0:02:42]} 16. Nxe6 {[%clk 0:01:57]}  Qf6 {[%clk 0:02:26]} 17. Be3 {[%clk 0:01:51]}  Bxe6 {[%clk 0:01:53]} 18. Bxd4 {[%clk 0:01:46]}  Qxd4 {[%clk 0:01:53]} 19. Bxe6 {[%clk 0:01:41]}  Qxf2+ {[%clk 0:01:50]} 20. Kh1 {[%clk 0:01:42]}  Rd8 {[%clk 0:01:49]} 21. Rf1 {[%clk 0:01:39]}  Qxb2 {[%clk 0:01:47]} 22. Rb1 {[%clk 0:01:36]}  Qe5 {[%clk 0:01:43]} 23. Qb3 {[%clk 0:01:32]}  Rf8 {[%clk 0:01:39]} 24. Rbd1 {[%clk 0:01:29]}  Nf5 {[%clk 0:01:11]} 25. Rd7 {[%clk 0:01:26]}  Qf6 {[%clk 0:01:08]} 26. Bxf7+ {[%clk 0:01:22]}  Kh8 {[%clk 0:01:08]} 27. Re1 {[%clk 0:01:00]}  Qh4 {[%clk 0:01:06]} 28. Rdd1 {[%clk 0:00:55]}  Qf4 {[%clk 0:01:03]} 29. Be6 {[%clk 0:00:46]}  Nd4 {[%clk 0:00:55]} 30. Qc4 {[%clk 0:00:37]}  Be5 {[%clk 0:00:51]} 31. Rxe5 {[%clk 0:00:26]}  Qxe5 {[%clk 0:00:51]} 32. Bd5 {[%clk 0:00:20]}  Nf5 {[%clk 0:00:48]} 33. Qe4 {[%clk 0:00:15]}  Qf6 {[%clk 0:00:38]} 34. Bb3 {[%clk 0:00:11]}  h5 {[%clk 0:00:33]} 35. g3 {[%clk 0:00:09]}  Rd8 {[%clk 0:00:31]} 36. Rxd8+ {[%clk 0:00:08]}  Qxd8 {[%clk 0:00:32]} 37. Qe5+ {[%clk 0:00:07]}  Kh7 {[%clk 0:00:31]} 38. Bd5 {[%clk 0:00:07]}  Qb6 {[%clk 0:00:21]} 39. Qe6 {[%clk 0:00:04]}  Qf2 {[%clk 0:00:17]} 40. Qg8+ {[%clk 0:00:04]}  Kh6 {[%clk 0:00:17]} 41. Qh8+ {[%clk 0:00:03]}  Kg5 {[%clk 0:00:18]} 42. Qd8+ {[%clk 0:00:04]}  Kg4 {[%clk 0:00:17]} 43. Bg2 {[%clk 0:00:01]}  Qe1+ {[%clk 0:00:17]} 44. Bf1 {[%clk 0:00:02]}  Qxf1# {[%clk 0:00:18]} 0-1


[Site "https://www.chess.com"]

[Event "Titled Tuesday Blitz November 08 Early 2022"]
[White "Balkum, Alexander"]
[Black "Thiel, Thomas"]
[WhiteFideId "2005069"]
[BlackFideId "4615964"]
[WhiteElo "2337"]
[BlackElo "2214"]
[Result "1/2-1/2"]
[Round "08"]
[TimeControl "180+1"]
[Date "2022.11.09"]
[WhiteClock "0:00:19"]
[BlackClock "0:01:57"]

1. e4 {[%clk 0:03:00]}  d5 {[%clk 0:02:58]} 2. exd5 {[%clk 0:03:00]}  Nf6 {[%clk 0:02:57]} 3. d4 {[%clk 0:02:59]}  Nxd5 {[%clk 0:02:56]} 4. Nf3 {[%clk 0:02:58]}  g6 {[%clk 0:02:56]} 5. Be2 {[%clk 0:02:58]}  Bg7 {[%clk 0:02:56]} 6. O-O {[%clk 0:02:57]}  O-O {[%clk 0:02:56]} 7. c4 {[%clk 0:02:53]}  Nb6 {[%clk 0:02:54]} 8. Nc3 {[%clk 0:02:44]}  Bg4 {[%clk 0:02:53]} 9. c5 {[%clk 0:02:31]}  Nd5 {[%clk 0:02:50]} 10. Qb3 {[%clk 0:02:10]}  Nxc3 {[%clk 0:02:46]} 11. bxc3 {[%clk 0:02:11]}  b6 {[%clk 0:02:44]} 12. h3 {[%clk 0:01:50]}  Be6 {[%clk 0:02:42]} 13. Bc4 {[%clk 0:01:48]}  Bxc4 {[%clk 0:02:42]} 14. Qxc4 {[%clk 0:01:49]}  Nd7 {[%clk 0:02:40]} 15. Ba3 {[%clk 0:01:11]}  bxc5 {[%clk 0:02:39]} 16. Bxc5 {[%clk 0:01:08]}  Nxc5 {[%clk 0:02:39]} 17. Qxc5 {[%clk 0:01:09]}  Qd6 {[%clk 0:02:37]} 18. Qc4 {[%clk 0:00:59]}  Rac8 {[%clk 0:02:31]} 19. Rab1 {[%clk 0:00:45]}  e6 {[%clk 0:02:29]} 20. Rb7 {[%clk 0:00:42]}  c5 {[%clk 0:02:29]} 21. Qa4 {[%clk 0:00:33]}  cxd4 {[%clk 0:02:27]} 22. cxd4 {[%clk 0:00:34]}  a6 {[%clk 0:02:24]} 23. Rfb1 {[%clk 0:00:33]}  Rc6 {[%clk 0:02:22]} 24. Ne5 {[%clk 0:00:31]}  Bxe5 {[%clk 0:02:15]} 25. dxe5 {[%clk 0:00:32]}  Qd5 {[%clk 0:02:15]} 26. Rd1 {[%clk 0:00:26]}  Qc5 {[%clk 0:02:12]} 27. Rbb1 {[%clk 0:00:21]}  Qc4 {[%clk 0:02:02]} 28. Qxc4 {[%clk 0:00:20]}  Rxc4 {[%clk 0:02:03]} 29. Rb6 {[%clk 0:00:19]}  Ra4 {[%clk 0:02:02]} 30. Rdd6 {[%clk 0:00:19]}  Rxa2 {[%clk 0:02:01]} 31. Rxa6 {[%clk 0:00:19]}  Rxa6 {[%clk 0:02:01]} 32. Rxa6 {[%clk 0:00:19]}  Rd8 {[%clk 0:02:01]} 33. Ra4 {[%clk 0:00:18]}  Rd5 {[%clk 0:01:59]} 34. f4 {[%clk 0:00:18]}  Kg7 {[%clk 0:01:59]} 35. Kh2 {[%clk 0:00:19]}  Rd2 {[%clk 0:01:58]} 36. h4 {[%clk 0:00:19]}  h5 {[%clk 0:01:57]} 37. Kh3 {[%clk 0:00:19]}  Rd3+ {[%clk 0:01:57]} 38. g3 {[%clk 0:00:19]}  Rc3 {[%clk 0:01:57]} 39. Ra6 {[%clk 0:00:19]} 1/2-1/2


[Site "https://www.chess.com"]

[Event "Titled Tuesday Blitz November 08 Early 2022"]
[White "Besedes, Danilo"]
[Black "Koridze, Lile"]
[WhiteFideId "946796"]
[BlackFideId "13612514"]
[WhiteElo "2352"]
[BlackElo "2050"]
[Result "1-0"]
[Round "08"]
[TimeControl "180+1"]
[Date "2022.11.09"]
[WhiteClock "0:00:39"]
[BlackClock "0:00:22"]

1. Nf3 {[%clk 0:03:00]}  d5 {[%clk 0:02:58]} 2. b3 {[%clk 0:02:58]}  Nf6 {[%clk 0:02:48]} 3. Ba3 {[%clk 0:02:57]}  g6 {[%clk 0:02:43]} 4. e3 {[%clk 0:02:53]}  Bg7 {[%clk 0:02:43]} 5. Be2 {[%clk 0:02:52]}  O-O {[%clk 0:02:41]} 6. O-O {[%clk 0:02:52]}  b6 {[%clk 0:02:42]} 7. d4 {[%clk 0:02:51]}  Bb7 {[%clk 0:02:41]} 8. c4 {[%clk 0:02:51]}  Nbd7 {[%clk 0:02:26]} 9. Nc3 {[%clk 0:02:48]}  Re8 {[%clk 0:02:20]} 10. Rc1 {[%clk 0:02:37]}  e5 {[%clk 0:02:16]} 11. cxd5 {[%clk 0:02:21]}  exd4 {[%clk 0:02:09]} 12. Nxd4 {[%clk 0:02:17]}  Nxd5 {[%clk 0:02:07]} 13. Nxd5 {[%clk 0:02:14]}  Bxd5 {[%clk 0:02:08]} 14. Nc6 {[%clk 0:02:13]}  Qg5 {[%clk 0:01:53]} 15. Bf3 {[%clk 0:02:09]}  Bxf3 {[%clk 0:01:36]} 16. Qxf3 {[%clk 0:02:06]}  Rac8 {[%clk 0:01:30]} 17. Rfd1 {[%clk 0:02:00]}  Ne5 {[%clk 0:01:29]} 18. Nxe5 {[%clk 0:02:00]}  Qxe5 {[%clk 0:01:25]} 19. Rd7 {[%clk 0:01:51]}  Qe6 {[%clk 0:01:10]} 20. Rcxc7 {[%clk 0:01:45]}  Rxc7 {[%clk 0:01:08]} 21. Rxc7 {[%clk 0:01:45]}  a5 {[%clk 0:01:08]} 22. g3 {[%clk 0:01:43]}  Be5 {[%clk 0:01:04]} 23. Rc6 {[%clk 0:01:41]}  Qd7 {[%clk 0:00:59]} 24. Kg2 {[%clk 0:01:40]}  b5 {[%clk 0:00:57]} 25. Bc5 {[%clk 0:01:37]}  Qd2 {[%clk 0:00:48]} 26. a4 {[%clk 0:01:33]}  bxa4 {[%clk 0:00:46]} 27. bxa4 {[%clk 0:01:32]}  Qa2 {[%clk 0:00:46]} 28. Qe4 {[%clk 0:01:29]}  f5 {[%clk 0:00:44]} 29. Qd3 {[%clk 0:01:22]}  Qxa4 {[%clk 0:00:42]} 30. Qd5+ {[%clk 0:01:21]}  Kg7 {[%clk 0:00:39]} 31. Qd7+ {[%clk 0:01:00]}  Kh6 {[%clk 0:00:31]} 32. Qxe8 {[%clk 0:00:56]}  Qe4+ {[%clk 0:00:31]} 33. Kg1 {[%clk 0:00:47]}  Qb1+ {[%clk 0:00:29]} 34. Kg2 {[%clk 0:00:48]}  Qe4+ {[%clk 0:00:29]} 35. f3 {[%clk 0:00:48]}  Qc2+ {[%clk 0:00:27]} 36. Kh3 {[%clk 0:00:46]}  Qf2 {[%clk 0:00:26]} 37. Qxe5 {[%clk 0:00:40]}  Qf1+ {[%clk 0:00:25]} 38. Kh4 {[%clk 0:00:40]}  Qg2 {[%clk 0:00:22]} 39. Bf8# {[%clk 0:00:39]} 1-0


[Site "https://www.chess.com"]

[Event "Titled Tuesday Blitz November 08 Early 2022"]
[White "Biastoch, Bennet"]
[Black "Kozak, Antoni"]
[WhiteFideId "12939889"]
[BlackFideId "21832030"]
[WhiteElo "2221"]
[BlackElo "2447"]
[Result "1-0"]
[Round "08"]
[TimeControl "180+1"]
[Date "2022.11.09"]
[WhiteClock "0:00:12"]
[BlackClock "0:00:03"]

1. e4 {[%clk 0:03:00]}  c6 {[%clk 0:02:57]} 2. Nc3 {[%clk 0:03:00]}  d5 {[%clk 0:02:57]} 3. Nf3 {[%clk 0:03:01]}  dxe4 {[%clk 0:02:53]} 4. Nxe4 {[%clk 0:03:02]}  Nf6 {[%clk 0:02:54]} 5. Qe2 {[%clk 0:03:01]}  Nxe4 {[%clk 0:02:49]} 6. Qxe4 {[%clk 0:03:02]}  Qd5 {[%clk 0:02:49]} 7. Qh4 {[%clk 0:03:01]}  Qe6+ {[%clk 0:02:48]} 8. Be2 {[%clk 0:03:01]}  Qg4 {[%clk 0:02:48]} 9. Qg3 {[%clk 0:03:02]}  h5 {[%clk 0:02:37]} 10. Ne5 {[%clk 0:02:47]}  Qf5 {[%clk 0:02:11]} 11. Bd3 {[%clk 0:02:10]}  Qf6 {[%clk 0:02:06]} 12. b3 {[%clk 0:02:00]}  Bf5 {[%clk 0:01:21]} 13. Bb2 {[%clk 0:01:37]}  Bxd3 {[%clk 0:01:15]} 14. Qxd3 {[%clk 0:01:36]}  Qd6 {[%clk 0:01:14]} 15. Qf3 {[%clk 0:01:28]}  Qd5 {[%clk 0:01:14]} 16. Qe2 {[%clk 0:01:12]}  Nd7 {[%clk 0:01:08]} 17. Nxd7 {[%clk 0:01:09]}  Qxd7 {[%clk 0:01:08]} 18. O-O-O {[%clk 0:01:09]}  Rh6 {[%clk 0:01:07]} 19. h4 {[%clk 0:00:58]}  e6 {[%clk 0:00:56]} 20. Rh3 {[%clk 0:00:58]}  Rg6 {[%clk 0:00:44]} 21. Rd3 {[%clk 0:00:53]}  Qc7 {[%clk 0:00:44]} 22. Qxh5 {[%clk 0:00:48]}  Rxg2 {[%clk 0:00:42]} 23. Re1 {[%clk 0:00:43]}  Rg6 {[%clk 0:00:31]} 24. Be5 {[%clk 0:00:39]}  Qa5 {[%clk 0:00:28]} 25. Kb1 {[%clk 0:00:34]}  Rf6 {[%clk 0:00:21]} 26. Qh8 {[%clk 0:00:29]}  Rg6 {[%clk 0:00:16]} 27. Bc3 {[%clk 0:00:23]}  Qc7 {[%clk 0:00:13]} 28. h5 {[%clk 0:00:21]}  Rg2 {[%clk 0:00:13]} 29. h6 {[%clk 0:00:20]}  gxh6 {[%clk 0:00:13]} 30. Qh7 {[%clk 0:00:18]}  Qe7 {[%clk 0:00:08]} 31. Be5 {[%clk 0:00:17]}  Rd8 {[%clk 0:00:08]} 32. Qe4 {[%clk 0:00:16]}  Rxd3 {[%clk 0:00:07]} 33. Qxd3 {[%clk 0:00:16]}  Qd7 {[%clk 0:00:07]} 34. Qf3 {[%clk 0:00:16]}  Rg5 {[%clk 0:00:07]} 35. Bf4 {[%clk 0:00:16]}  Rf5 {[%clk 0:00:07]} 36. Qe4 {[%clk 0:00:16]}  Qd5 {[%clk 0:00:08]} 37. Qe3 {[%clk 0:00:15]}  Bc5 {[%clk 0:00:08]} 38. Qg3 {[%clk 0:00:13]}  h5 {[%clk 0:00:07]} 39. Be3 {[%clk 0:00:13]}  Bxe3 {[%clk 0:00:06]} 40. dxe3 {[%clk 0:00:14]}  Ke7 {[%clk 0:00:06]} 41. Qh4+ {[%clk 0:00:14]}  Rf6 {[%clk 0:00:05]} 42. e4 {[%clk 0:00:14]}  Qe5 {[%clk 0:00:05]} 43. f4 {[%clk 0:00:13]}  Qxf4 {[%clk 0:00:06]} 44. Qxh5 {[%clk 0:00:13]}  e5 {[%clk 0:00:05]} 45. Rd1 {[%clk 0:00:12]}  Qxe4 {[%clk 0:00:05]} 46. Qh3 {[%clk 0:00:13]}  Qf5 {[%clk 0:00:05]} 47. Qh8 {[%clk 0:00:13]}  Rg6 {[%clk 0:00:03]} 48. Qd8+ {[%clk 0:00:13]}  Ke6 {[%clk 0:00:03]} 49. Qd6# {[%clk 0:00:12]} 1-0


[Site "https://www.chess.com"]

[Event "Titled Tuesday Blitz November 08 Early 2022"]
[White "Bilan, Danila"]
[Black "Hernandez Jimenez, Alexander Andres"]
[WhiteFideId "24161918"]
[BlackFideId "3900452"]
[WhiteElo "2173"]
[BlackElo "2098"]
[Result "1-0"]
[Round "08"]
[TimeControl "180+1"]
[Date "2022.11.09"]
[WhiteClock "0:00:19"]
[BlackClock "0:00:07"]

1. d4 {[%clk 0:03:00]}  Nf6 {[%clk 0:02:57]} 2. Nf3 {[%clk 0:02:59]}  e6 {[%clk 0:02:56]} 3. g3 {[%clk 0:02:59]}  d5 {[%clk 0:02:56]} 4. Bg2 {[%clk 0:02:59]}  c5 {[%clk 0:02:54]} 5. O-O {[%clk 0:02:59]}  Nc6 {[%clk 0:02:54]} 6. c4 {[%clk 0:02:59]}  dxc4 {[%clk 0:02:48]} 7. Qa4 {[%clk 0:02:55]}  Bd7 {[%clk 0:02:32]} 8. Qxc4 {[%clk 0:02:50]}  cxd4 {[%clk 0:02:04]} 9. Nxd4 {[%clk 0:02:49]}  Rc8 {[%clk 0:02:05]} 10. Nxc6 {[%clk 0:02:39]}  Bxc6 {[%clk 0:02:04]} 11. Bxc6+ {[%clk 0:02:38]}  Rxc6 {[%clk 0:02:03]} 12. Qa4 {[%clk 0:02:32]}  a6 {[%clk 0:01:51]} 13. Nc3 {[%clk 0:02:28]}  Bc5 {[%clk 0:01:40]} 14. Bg5 {[%clk 0:02:24]}  Qb6 {[%clk 0:01:40]} 15. Bxf6 {[%clk 0:02:07]}  gxf6 {[%clk 0:01:36]} 16. Ne4 {[%clk 0:01:42]}  Ke7 {[%clk 0:01:35]} 17. a3 {[%clk 0:01:25]}  Rhc8 {[%clk 0:00:52]} 18. b4 {[%clk 0:01:04]}  Bd4 {[%clk 0:00:50]} 19. Rad1 {[%clk 0:00:57]}  f5 {[%clk 0:00:47]} 20. Nd2 {[%clk 0:00:54]}  Rc2 {[%clk 0:00:35]} 21. Nf3 {[%clk 0:00:48]}  R2c4 {[%clk 0:00:14]} 22. e3 {[%clk 0:00:36]}  Bxe3 {[%clk 0:00:11]} 23. Qd7+ {[%clk 0:00:33]}  Kf6 {[%clk 0:00:10]} 24. fxe3 {[%clk 0:00:29]}  Qxe3+ {[%clk 0:00:10]} 25. Kh1 {[%clk 0:00:30]}  Rc2 {[%clk 0:00:07]} 26. Qd4+ {[%clk 0:00:23]}  Qxd4 {[%clk 0:00:06]} 27. Nxd4 {[%clk 0:00:22]}  Ra2 {[%clk 0:00:07]} 28. Rd3 {[%clk 0:00:19]} 1-0


[Site "https://www.chess.com"]

[Event "Titled Tuesday Blitz November 08 Early 2022"]
[White "Bok, Benjamin"]
[Black "Shuvalov, Evgenij"]
[WhiteFideId "1017063"]
[BlackFideId "4187237"]
[WhiteElo "2658"]
[BlackElo "2049"]
[Result "1-0"]
[Round "08"]
[TimeControl "180+1"]
[Date "2022.11.09"]
[WhiteClock "0:00:15"]
[BlackClock "0:00:05"]

1. d4 {[%clk 0:03:00]}  Nf6 {[%clk 0:02:52]} 2. c4 {[%clk 0:03:00]}  g6 {[%clk 0:02:51]} 3. g3 {[%clk 0:03:00]}  c6 {[%clk 0:02:51]} 4. Nf3 {[%clk 0:02:59]}  Bg7 {[%clk 0:02:49]} 5. Bg2 {[%clk 0:02:59]}  d5 {[%clk 0:02:50]} 6. b3 {[%clk 0:02:59]}  O-O {[%clk 0:02:48]} 7. Bb2 {[%clk 0:02:58]}  dxc4 {[%clk 0:02:48]} 8. bxc4 {[%clk 0:02:59]}  c5 {[%clk 0:02:48]} 9. O-O {[%clk 0:02:59]}  Qb6 {[%clk 0:02:44]} 10. Qb3 {[%clk 0:02:59]}  Ne4 {[%clk 0:02:30]} 11. e3 {[%clk 0:02:57]}  Nc6 {[%clk 0:02:24]} 12. Ne5 {[%clk 0:02:54]}  Nd6 {[%clk 0:01:50]} 13. Nxc6 {[%clk 0:02:52]}  bxc6 {[%clk 0:01:46]} 14. dxc5 {[%clk 0:02:52]}  Qxc5 {[%clk 0:01:46]} 15. Bxg7 {[%clk 0:02:52]}  Kxg7 {[%clk 0:01:47]} 16. Nd2 {[%clk 0:02:53]}  Be6 {[%clk 0:01:45]} 17. Qc3+ {[%clk 0:02:52]}  Kg8 {[%clk 0:01:44]} 18. Rac1 {[%clk 0:02:52]}  Rab8 {[%clk 0:01:41]} 19. Nb3 {[%clk 0:02:36]}  Qxc4 {[%clk 0:01:33]} 20. Qa1 {[%clk 0:01:40]}  Qb4 {[%clk 0:01:16]} 21. Nd4 {[%clk 0:01:35]}  Bd7 {[%clk 0:01:07]} 22. Nxc6 {[%clk 0:01:19]}  Bxc6 {[%clk 0:01:05]} 23. Rxc6 {[%clk 0:01:20]}  Rfc8 {[%clk 0:01:00]} 24. Qe5 {[%clk 0:01:06]}  Rxc6 {[%clk 0:00:54]} 25. Bxc6 {[%clk 0:01:07]}  Qb2 {[%clk 0:00:50]} 26. Qxe7 {[%clk 0:01:05]}  Nf5 {[%clk 0:00:42]} 27. Qxa7 {[%clk 0:01:04]}  Rd8 {[%clk 0:00:26]} 28. Bd5 {[%clk 0:01:04]}  Qf6 {[%clk 0:00:20]} 29. Bb3 {[%clk 0:00:57]}  Rd2 {[%clk 0:00:17]} 30. Rd1 {[%clk 0:00:45]}  Rb2 {[%clk 0:00:13]} 31. Bxf7+ {[%clk 0:00:24]}  Kg7 {[%clk 0:00:09]} 32. Bb3+ {[%clk 0:00:18]}  Kh6 {[%clk 0:00:09]} 33. e4 {[%clk 0:00:16]}  Nh4 {[%clk 0:00:05]} 34. Qe3+ {[%clk 0:00:15]}  g5 {[%clk 0:00:05]} 35. gxh4 {[%clk 0:00:15]} 1-0


[Site "https://www.chess.com"]

[Event "Titled Tuesday Blitz November 08 Early 2022"]
[White "Bon, Michael"]
[Black "Tasev, Dejan"]
[WhiteFideId "620696"]
[BlackFideId "936618"]
[WhiteElo "2338"]
[BlackElo "2256"]
[Result "0-1"]
[Round "08"]
[TimeControl "180+1"]
[Date "2022.11.09"]
[WhiteClock "0:00:07"]
[BlackClock "0:00:18"]

1. e4 {[%clk 0:03:00]}  c6 {[%clk 0:02:59]} 2. d4 {[%clk 0:02:59]}  d5 {[%clk 0:02:59]} 3. e5 {[%clk 0:02:57]}  Bf5 {[%clk 0:02:59]} 4. c4 {[%clk 0:02:57]}  e6 {[%clk 0:02:58]} 5. Nc3 {[%clk 0:02:55]}  Ne7 {[%clk 0:02:58]} 6. h3 {[%clk 0:02:54]}  Bg6 {[%clk 0:02:58]} 7. Nge2 {[%clk 0:02:41]}  dxc4 {[%clk 0:02:55]} 8. Nf4 {[%clk 0:02:39]}  Nd7 {[%clk 0:02:53]} 9. Bxc4 {[%clk 0:02:36]}  Nb6 {[%clk 0:02:49]} 10. Bb3 {[%clk 0:02:30]}  a5 {[%clk 0:02:44]} 11. O-O {[%clk 0:02:12]}  Ned5 {[%clk 0:02:08]} 12. Nxg6 {[%clk 0:02:08]}  hxg6 {[%clk 0:02:05]} 13. Ne4 {[%clk 0:02:07]}  Be7 {[%clk 0:02:01]} 14. a3 {[%clk 0:01:49]}  a4 {[%clk 0:01:59]} 15. Ba2 {[%clk 0:01:49]}  Ra5 {[%clk 0:01:38]} 16. Bd2 {[%clk 0:01:34]}  Rb5 {[%clk 0:01:37]} 17. Rb1 {[%clk 0:01:26]}  Kf8 {[%clk 0:01:30]} 18. Qe2 {[%clk 0:01:02]}  Kg8 {[%clk 0:01:26]} 19. Rfd1 {[%clk 0:00:57]}  Rh4 {[%clk 0:01:20]} 20. Be1 {[%clk 0:00:49]}  Rh5 {[%clk 0:01:04]} 21. Kh2 {[%clk 0:00:38]}  Bf8 {[%clk 0:00:55]} 22. g3 {[%clk 0:00:36]}  Be7 {[%clk 0:00:43]} 23. Kg2 {[%clk 0:00:34]}  Qc7 {[%clk 0:00:41]} 24. Rbc1 {[%clk 0:00:26]}  Qb8 {[%clk 0:00:39]} 25. f4 {[%clk 0:00:18]}  Nd7 {[%clk 0:00:34]} 26. Rc2 {[%clk 0:00:16]}  Qa7 {[%clk 0:00:33]} 27. Qf2 {[%clk 0:00:15]}  Qb6 {[%clk 0:00:28]} 28. Bc4 {[%clk 0:00:13]}  Rb3 {[%clk 0:00:26]} 29. Bxb3 {[%clk 0:00:13]}  Qxb3 {[%clk 0:00:26]} 30. Re2 {[%clk 0:00:12]}  Qxd1 {[%clk 0:00:26]} 31. Bc3 {[%clk 0:00:10]}  Qb3 {[%clk 0:00:24]} 32. g4 {[%clk 0:00:09]}  Rh7 {[%clk 0:00:23]} 33. f5 {[%clk 0:00:08]}  gxf5 {[%clk 0:00:23]} 34. gxf5 {[%clk 0:00:09]}  Nxc3 {[%clk 0:00:23]} 35. bxc3 {[%clk 0:00:09]}  Qd5 {[%clk 0:00:24]} 36. Kh2 {[%clk 0:00:07]}  exf5 {[%clk 0:00:22]} 37. Qxf5 {[%clk 0:00:08]}  Qe6 {[%clk 0:00:23]} 38. Qf3 {[%clk 0:00:07]}  Nf8 {[%clk 0:00:20]} 39. Rg2 {[%clk 0:00:07]}  Ng6 {[%clk 0:00:20]} 40. Nf2 {[%clk 0:00:05]}  b5 {[%clk 0:00:20]} 41. Ng4 {[%clk 0:00:06]}  Bxa3 {[%clk 0:00:20]} 42. Qg3 {[%clk 0:00:05]}  Be7 {[%clk 0:00:20]} 43. Rf2 {[%clk 0:00:05]}  Bh4 {[%clk 0:00:19]} 44. Qf3 {[%clk 0:00:06]}  Bxf2 {[%clk 0:00:19]} 45. Qxf2 {[%clk 0:00:07]}  Qxg4 {[%clk 0:00:18]} 0-1


[Site "https://www.chess.com"]

[Event "Titled Tuesday Blitz November 08 Early 2022"]
[White "Brown, Andrew"]
[Black "Aaditya Dhingra"]
[WhiteFideId "3206513"]
[BlackFideId "25678191"]
[WhiteElo "2245"]
[BlackElo "2054"]
[Result "0-1"]
[Round "08"]
[TimeControl "180+1"]
[Date "2022.11.09"]
[WhiteClock "0:00:01"]
[BlackClock "0:00:05"]

1. d4 {[%clk 0:02:55]}  Nf6 {[%clk 0:02:58]} 2. c4 {[%clk 0:02:37]}  g6 {[%clk 0:02:58]} 3. Nc3 {[%clk 0:02:37]}  d5 {[%clk 0:02:58]} 4. cxd5 {[%clk 0:02:37]}  Nxd5 {[%clk 0:02:59]} 5. e4 {[%clk 0:02:37]}  Nxc3 {[%clk 0:03:00]} 6. bxc3 {[%clk 0:02:37]}  Bg7 {[%clk 0:03:01]} 7. Bb5+ {[%clk 0:02:32]}  Bd7 {[%clk 0:02:56]} 8. Be2 {[%clk 0:02:31]}  c5 {[%clk 0:02:50]} 9. Nf3 {[%clk 0:02:28]}  Qa5 {[%clk 0:02:43]} 10. Bd2 {[%clk 0:02:11]}  Bg4 {[%clk 0:02:28]} 11. c4 {[%clk 0:01:49]}  Qa3 {[%clk 0:02:19]} 12. d5 {[%clk 0:01:43]}  Bxa1 {[%clk 0:02:10]} 13. Qxa1 {[%clk 0:01:42]}  f6 {[%clk 0:02:09]} 14. e5 {[%clk 0:01:28]}  Bxf3 {[%clk 0:01:59]} 15. Bxf3 {[%clk 0:01:09]}  Nd7 {[%clk 0:01:57]} 16. exf6 {[%clk 0:01:06]}  exf6 {[%clk 0:01:50]} 17. O-O {[%clk 0:01:03]}  O-O {[%clk 0:01:50]} 18. d6 {[%clk 0:00:53]}  Qa6 {[%clk 0:01:32]} 19. Rb1 {[%clk 0:00:24]}  Rab8 {[%clk 0:01:09]} 20. Bd5+ {[%clk 0:00:15]}  Kg7 {[%clk 0:01:09]} 21. Bf4 {[%clk 0:00:08]}  Rfe8 {[%clk 0:01:07]} 22. h4 {[%clk 0:00:07]}  Re2 {[%clk 0:00:58]} 23. Re1 {[%clk 0:00:04]}  Rbe8 {[%clk 0:00:54]} 24. Rxe2 {[%clk 0:00:04]}  Rxe2 {[%clk 0:00:55]} 25. a3 {[%clk 0:00:04]}  Qa5 {[%clk 0:00:49]} 26. Kh2 {[%clk 0:00:04]}  Rxf2 {[%clk 0:00:21]} 27. Qc1 {[%clk 0:00:03]}  h5 {[%clk 0:00:06]} 28. Qd2 {[%clk 0:00:01]}  Rxd2 {[%clk 0:00:05]} 0-1


[Site "https://www.chess.com"]